bitfinex/quotes_BTCUSD_20251113
["timestamp","ask_amount","ask_price","bid_price","bid_amount"]
[1763055379261,0.24178208,100310.0,100300.0,0.66386615]
[1763055379467,0.24178208,100310.0,100300.0,0.32325436]
[1763055379683,0.25307208,100310.0,100300.0,0.32325436]
[1763055379897,0.25307208,100310.0,100300.0,0.52265615]
[1763055380123,0.09568989,100310.0,100300.0,0.66386615]
[1763055380397,0.02419359,100310.0,100300.0,0.66386615]
[1763055380612,0.22045633,100310.0,100300.0,1.09523073]
[1763055380830,0.02107442,100310.0,100300.0,0.57793615]
[1763055381047,0.02107442,100310.0,100300.0,0.66386615]
[1763055381459,0.02419382,100310.0,100300.0,1.18116073]
[1763055381899,0.34482155,100320.0,100300.0,0.66386615]
[1763055382103,0.41091112,100320.0,100310.0,0.19938191]
[1763055382309,0.41091112,100320.0,100310.0,0.25466191]
[1763055382694,0.21154249,100320.0,100310.0,0.25466191]
[1763055382906,0.04728377,100320.0,100310.0,0.25466191]
[1763055383103,0.04728377,100320.0,100310.0,0.34059191]
[1763055383312,0.02107442,100320.0,100310.0,0.85788649]
[1763055383534,0.02107442,100320.0,100310.0,1.27905564]
[1763055383732,0.03942864,100320.0,100310.0,1.27905564]
[1763055383866,0.01835422,100320.0,100310.0,1.27905564]
[1763055384291,0.021474,100320.0,100310.0,1.27905564]
[1763055384501,0.021474,100320.0,100310.0,0.76176106]
[1763055384723,0.021474,100320.0,100310.0,1.27905564]
[1763055385658,0.021474,100320.0,100310.0,1.28005564]
[1763055386312,0.021474,100320.0,100310.0,0.76276106]
[1763055386792,0.2204891,100330.0,100320.0,0.323]
[1763055386998,0.28517456,100330.0,100310.0,0.76276106]
[1763055387141,0.02114574,100330.0,100320.0,0.19936204]
[1763055387346,0.19934217,100330.0,100320.0,0.19936204]
[1763055387545,0.22048791,100330.0,100320.0,0.19936204]
[1763055387756,0.22048791,100330.0,100320.0,0.14121]
[1763055387757,0.19934217,100330.0,100320.0,0.14121]
[1763055387953,0.19934217,100330.0,100320.0,0.25464204]
[1763055388158,0.19934217,100330.0,100320.0,0.05528]
[1763055388425,0.19936204,100320.0,100310.0,0.84029458]
[1763055388647,0.19936204,100320.0,100310.0,0.52238191]
[1763055388773,0.19936204,100320.0,100310.0,0.57766191]
[1763055389179,0.19936204,100320.0,100310.0,0.37828]
[1763055389566,0.19938191,100310.0,100300.0,0.08618436]
[1763055389772,0.19938191,100310.0,100300.0,0.19965615]
[1763055389987,0.19936204,100320.0,100300.0,1.19021988]
[1763055390198,0.19936204,100320.0,100310.0,0.25148191]
[1763055390411,0.19936204,100320.0,100310.0,0.24648191]
[1763055390583,0.19936204,100320.0,100310.0,0.32705191]
[1763055391024,0.19936204,100320.0,100310.0,0.24648191]
[1763055391249,0.20930927,100330.0,100310.0,0.32705191]
[1763055391466,0.27025581,100330.0,100310.0,0.32705191]
[1763055391669,0.32676617,100340.0,100320.0,0.13267]
[1763055391925,0.32676617,100340.0,100310.0,0.323]
[1763055391926,0.19936204,100320.0,100310.0,0.323]
[1763055392164,0.19938191,100310.0,100300.0,0.80749081]
[1763055392372,0.19938191,100310.0,100300.0,1.12052073]
[1763055392581,0.19938191,100310.0,100300.0,0.97321894]
[1763055392803,0.21044191,100310.0,100300.0,0.00025436]
[1763055393466,0.21044191,100310.0,100300.0,0.00225436]
[1763055394304,0.21044191,100310.0,100300.0,0.20165615]
[1763055394710,0.21044191,100310.0,100300.0,0.25175615]
[1763055394914,0.31683909,100320.0,100300.0,0.33332615]
[1763055395120,0.19938191,100310.0,100300.0,0.33332615]
[1763055395329,0.31771717,100330.0,100310.0,0.0521]
[1763055395565,0.09816915,100320.0,100310.0,0.33205097]
[1763055395776,0.29753119,100320.0,100310.0,0.33205097]
[1763055395974,0.29753119,100320.0,100310.0,0.25148097]
[1763055396175,0.32878477,100320.0,100310.0,0.0521]
[1763055396378,0.32878477,100320.0,100310.0,0.19938191]
[1763055396725,0.32878477,100320.0,100300.0,0.79752073]
[1763055397127,0.19938191,100310.0,100300.0,1.12052073]
[1763055397338,0.32878477,100320.0,100310.0,0.19938191]
[1763055397533,0.23967717,100330.0,100310.0,0.84934649]
[1763055397757,0.22036927,100330.0,100320.0,0.19936204]
[1763055398163,0.30745827,100340.0,100320.0,0.84932662]
[1763055398368,0.30745827,100340.0,100330.0,0.03625]
[1763055398578,0.37254764,100340.0,100330.0,0.03625]
[1763055398753,0.19936204,100320.0,100310.0,0.43982]
[1763055399177,0.19938191,100310.0,100300.0,0.00125436]
[1763055399402,0.19936204,100320.0,100310.0,0.03924]
[1763055399628,0.29753119,100320.0,100310.0,0.03924]
[1763055399836,0.19938191,100310.0,100300.0,0.00025436]
[1763055400374,0.29724981,100310.0,100300.0,0.00025436]
[1763055400513,0.29724981,100310.0,100300.0,0.00125436]
[1763055400730,0.21945981,100310.0,100300.0,0.00125436]
[1763055400927,0.29724981,100310.0,100300.0,0.00125436]
[1763055401152,0.39573317,100310.0,100300.0,0.00125436]
[1763055401541,0.39573317,100310.0,100300.0,0.00225436]
[1763055401734,0.31794317,100310.0,100300.0,0.00225436]
[1763055402720,0.37612106,100310.0,100300.0,0.00125436]
[1763055402933,0.31815896,100310.0,100300.0,0.20065615]
[1763055403174,0.29755106,100310.0,100300.0,0.00125436]
[1763055403380,0.29755106,100310.0,100300.0,0.19965615]
[1763055403609,0.19938191,100310.0,100300.0,0.19965615]
[1763055403822,0.78874051,100320.0,100300.0,0.25175615]
[1763055404030,0.22036927,100330.0,100310.0,0.33205191]
[1763055404240,0.23967717,100330.0,100310.0,0.33205191]
[1763055404466,0.0303679,100330.0,100320.0,0.19936204]
[1763055404679,0.22971007,100330.0,100310.0,0.33205191]
[1763055405091,0.001,100320.0,100310.0,0.33205191]
[1763055405503,0.23171007,100330.0,100310.0,0.33205191]
[1763055405724,0.32819343,100330.0,100320.0,0.19936204]
[1763055405897,0.19936204,100320.0,100310.0,0.33205191]
[1763055406163,0.32819343,100330.0,100320.0,0.19936204]
[1763055406410,0.12885126,100330.0,100310.0,0.33205191]
[1763055406650,0.30888644,100330.0,100320.0,0.19936204]
[1763055406896,0.19936204,100320.0,100310.0,0.33305134]
[1763055407067,0.25018689,100320.0,100310.0,0.001]
[1763055407729,0.19936204,100320.0,100310.0,0.001]
[1763055408008,0.29883119,100320.0,100310.0,0.001]
[1763055408624,0.37610119,100320.0,100310.0,0.001]
[1763055408980,0.37610119,100320.0,100310.0,0.002]
[1763055409930,0.29883119,100320.0,100310.0,0.002]
[1763055410071,0.39731455,100320.0,100310.0,0.002]
[1763055410512,0.47458455,100320.0,100310.0,0.002]
[1763055411110,0.49389245,100320.0,100310.0,0.002]
[1763055411845,0.49389245,100320.0,100310.0,0.001]
[1763055412069,0.41662245,100320.0,100310.0,0.001]
[1763055412271,0.19938191,100310.0,100300.0,0.19965405]
[1763055412488,0.41662245,100320.0,100310.0,0.19938191]
[1763055412637,0.19936204,100320.0,100310.0,0.25148191]
[1763055413010,0.33816144,100330.0,100320.0,0.19936204]
[1763055413544,0.19936204,100320.0,100310.0,0.27995191]
[1763055413827,0.19936204,100320.0,100310.0,0.19938191]
[1763055413945,0.29753119,100320.0,100310.0,0.19938191]
[1763055414140,0.19936204,100320.0,100310.0,0.19938191]
[1763055414347,0.20142204,100320.0,100310.0,0.19938191]
[1763055414586,0.19936204,100320.0,100310.0,0.19938191]
[1763055414788,0.26300139,100320.0,100300.0,0.29019413]
[1763055415337,0.19938191,100310.0,100300.0,0.61319623]
[1763055415539,0.19938191,100310.0,100300.0,0.53262623]
[1763055415848,0.20218191,100310.0,100300.0,0.00025436]
[1763055415992,0.22148981,100310.0,100300.0,0.00025436]
[1763055416193,0.28720185,100310.0,100300.0,0.00025436]
[1763055416806,0.36298185,100310.0,100300.0,0.00025436]
[1763055417398,0.35769863,100310.0,100300.0,0.00025436]
[1763055418291,0.35769863,100310.0,100300.0,0.00125436]
[1763055418556,0.29198659,100310.0,100300.0,0.00025436]
[1763055418773,0.21620659,100310.0,100300.0,0.19965615]
[1763055419008,0.21620659,100310.0,100300.0,0.00025436]
[1763055419255,0.21620659,100310.0,100300.0,0.19965615]
[1763055419455,0.29198659,100310.0,100300.0,0.00025436]
[1763055419684,0.39046995,100310.0,100300.0,0.00025436]
[1763055420342,0.39046995,100310.0,100280.0,0.23441983]
[1763055420343,0.19942167,100290.0,100280.0,0.23441983]
[1763055420548,0.28627426,100290.0,100280.0,0.75171441]
[1763055421019,0.23919426,100290.0,100280.0,0.29000983]
[1763055421229,0.24516426,100290.0,100280.0,0.22444886]
[1763055421432,0.39021557,100290.0,100280.0,0.22444886]
[1763055421640,0.12322259,100290.0,100280.0,0.22644886]
[1763055421843,0.04646259,100290.0,100280.0,0.22644886]
[1763055422048,0.12323259,100290.0,100280.0,0.22844886]
[1763055422240,0.32265426,100290.0,100280.0,0.22844886]
[1763055422490,0.32265426,100290.0,100280.0,0.0290073]
[1763055422703,0.24102385,100290.0,100280.0,0.22844886]
[1763055422909,0.34196216,100290.0,100280.0,0.22844886]
[1763055423056,0.34196216,100290.0,100280.0,0.0270073]
[1763055423463,0.34196216,100290.0,100280.0,0.0280073]
[1763055423646,0.03977259,100290.0,100280.0,0.22744886]
[1763055423845,0.32259426,100290.0,100280.0,0.0270073]
[1763055424062,0.38975495,100290.0,100280.0,0.0250073]
[1763055424511,0.40906285,100290.0,100280.0,0.0250073]
[1763055424920,0.40906285,100290.0,100280.0,0.22444886]
[1763055425125,1.42629103,100290.0,100280.0,0.0250073]
[1763055425277,1.40698313,100290.0,100280.0,0.0250073]
[1763055425496,0.51333328,100290.0,100280.0,0.0250073]
[1763055425694,9.259e-05,100290.0,100280.0,0.35873886]
[1763055425925,9.259e-05,100290.0,100280.0,1.0095483]
[1763055426124,9.259e-05,100290.0,100280.0,1.01005714]
[1763055426320,0.24871113,100310.0,100280.0,0.3617677]
[1763055426546,0.04023,100290.0,100280.0,0.22458781]
[1763055426745,0.07829,100300.0,100290.0,0.19942167]
[1763055426955,0.27769179,100300.0,100290.0,0.19942167]
[1763055427127,0.28422179,100300.0,100280.0,0.3232658]
[1763055427349,0.24031167,100290.0,100280.0,0.22458781]
[1763055427552,0.31800167,100290.0,100280.0,0.34814673]
[1763055427759,0.31800167,100290.0,100280.0,0.02714673]
[1763055428512,0.41617082,100290.0,100280.0,0.02914673]
[1763055428721,0.31800167,100290.0,100280.0,0.02914673]
[1763055428927,0.1378879,100290.0,100280.0,0.02714673]
[1763055429132,0.47625298,100290.0,100280.0,0.02714673]
[1763055429338,0.04029,100290.0,100280.0,0.22658829]
[1763055429548,0.27769179,100300.0,100290.0,0.19942167]
[1763055429751,0.27769179,100300.0,100280.0,0.22558829]
[1763055429952,0.24618167,100290.0,100280.0,0.22558829]
[1763055430156,0.16889835,100290.0,100280.0,0.22658829]
[1763055430364,0.09131835,100290.0,100280.0,0.22558829]
[1763055430550,0.29074002,100290.0,100280.0,0.22458829]
[1763055430683,0.36832002,100290.0,100280.0,0.02514673]
[1763055431112,0.48579707,100290.0,100280.0,0.02514673]
[1763055431537,0.48579707,100290.0,100280.0,0.02614673]
[1763055432176,0.19940179,100300.0,100290.0,0.19942167]
[1763055432635,0.28351179,100300.0,100290.0,0.0002544]
[1763055433050,0.30281969,100300.0,100290.0,0.0002544]
[1763055433265,0.28351179,100300.0,100290.0,0.0002544]
[1763055433693,0.20593179,100300.0,100290.0,0.19967607]
[1763055433903,0.20593179,100300.0,100290.0,0.0002544]
[1763055434133,0.28351179,100300.0,100290.0,0.0002544]
[1763055434760,0.95362913,100300.0,100290.0,0.0002544]
[1763055434963,0.62581969,100300.0,100290.0,0.0002544]
[1763055435178,1.37389913,100300.0,100290.0,0.0002544]
[1763055435385,1.41731787,100300.0,100290.0,0.0002544]
[1763055436648,1.41931787,100300.0,100290.0,0.0002544]
[1763055436849,1.42131787,100300.0,100290.0,0.0002544]
[1763055437800,1.42131787,100300.0,100290.0,1e-08]
[1763055437944,1.64131785,100300.0,100290.0,1e-08]
[1763055438394,0.99050841,100300.0,100290.0,1e-08]
[1763055438533,1.64131785,100300.0,100290.0,1e-08]
[1763055438734,0.31872167,100290.0,100280.0,1e-08]
[1763055438933,1.18549152,100290.0,100280.0,1e-08]
[1763055440149,1.18749152,100290.0,100280.0,1e-08]
[1763055441297,0.53668208,100290.0,100280.0,1e-08]
[1763055441522,1.23091026,100290.0,100280.0,1e-08]
[1763055442562,0.58010082,100290.0,100280.0,1e-08]
[1763055442765,1.23091026,100290.0,100280.0,1e-08]
[1763055443610,1.55391026,100290.0,100280.0,1e-08]
[1763055443838,0.8695589,100280.0,100270.0,1e-08]
[1763055444043,1.05210226,100280.0,100270.0,0.00046544]
[1763055444252,0.21878924,100260.0,100250.0,0.052]
[1763055444464,0.35848488,100260.0,100250.0,0.052]
[1763055444679,1.02011257,100260.0,100250.0,0.052]
[1763055445325,1.00080467,100260.0,100250.0,0.052]
[1763055445554,0.46778649,100260.0,100250.0,0.052]
[1763055445983,1.11859593,100260.0,100250.0,0.052]
[1763055446190,1.11859593,100260.0,100250.0,0.053]
[1763055446402,0.34999523,100260.0,100250.0,0.053]
[1763055446613,0.34999523,100260.0,100250.0,0.054]
[1763055447026,0.13886564,100260.0,100250.0,0.09298]
[1763055447242,0.33834698,100260.0,100250.0,0.29248124]
[1763055447704,0.24017783,100260.0,100250.0,0.29248124]
[1763055447919,0.19994783,100260.0,100250.0,0.42800124]
[1763055448127,0.30214698,100260.0,100250.0,0.054]
[1763055448330,0.29811698,100260.0,100250.0,0.054]
[1763055448546,0.30214698,100260.0,100250.0,0.054]
[1763055448764,1.12898978,100260.0,100250.0,0.054]
[1763055448992,0.49748824,100260.0,100250.0,0.054]
[1763055449437,1.14829768,100260.0,100250.0,0.054]
[1763055449864,1.14829768,100260.0,100250.0,0.05501804]
[1763055450561,0.49748824,100260.0,100250.0,0.05501804]
[1763055450787,1.14829768,100260.0,100250.0,0.05401804]
[1763055451017,1.16663905,100260.0,100250.0,0.05401804]
[1763055451249,1.48963905,100260.0,100250.0,0.05401804]
[1763055451475,1.53305779,100260.0,100250.0,0.05401804]
[1763055451929,1.53305779,100260.0,100250.0,0.05301804]
[1763055452370,0.88424835,100260.0,100250.0,0.05301804]
[1763055452591,1.53505779,100260.0,100250.0,0.05301804]
[1763055452861,1.53605779,100260.0,100250.0,0.05301804]
[1763055453322,1.53918001,100260.0,100250.0,0.05301804]
[1763055453572,1.53605779,100260.0,100250.0,0.05301804]
[1763055454332,1.53605779,100260.0,100250.0,1e-08]
[1763055454546,1.53917996,100260.0,100250.0,1e-08]
[1763055454758,1.53605779,100260.0,100250.0,1e-08]
[1763055454968,1.54622021,100260.0,100250.0,1e-08]
[1763055455181,1.54934238,100260.0,100250.0,1e-08]
[1763055455422,1.54934237,100260.0,100250.0,1e-08]
[1763055457513,1.49263905,100260.0,100250.0,1e-08]
[1763055457981,0.84182961,100260.0,100250.0,1e-08]
[1763055458202,0.49952171,100260.0,100250.0,1e-08]
[1763055458672,1.16963905,100260.0,100250.0,1e-08]
[1763055458903,1.53605779,100260.0,100250.0,1e-08]
[1763055459127,1.53917981,100260.0,100250.0,1e-08]
[1763055459998,0.24369998,100250.0,100240.0,1e-08]
[1763055460208,1.12559439,100250.0,100240.0,1e-08]
[1763055461462,0.65688287,100250.0,100240.0,1e-08]
[1763055461708,0.23395399,100250.0,100240.0,1e-08]
[1763055461932,0.31550372,100250.0,100240.0,1e-08]
[1763055462376,0.23395372,100250.0,100240.0,1e-08]
[1763055462595,0.23477372,100250.0,100240.0,1e-08]
[1763055462820,0.03527248,100250.0,100240.0,1e-08]
[1763055463094,0.2308316,100250.0,100240.0,0.19952115]
[1763055463302,0.2347737,100250.0,100240.0,1e-08]
[1763055463517,0.2347737,100250.0,100240.0,0.19952115]
[1763055463518,0.2339537,100250.0,100240.0,0.19952115]
[1763055463956,0.23477366,100250.0,100240.0,1e-08]
[1763055464166,0.38872585,100250.0,100240.0,1e-08]
[1763055464395,0.40803375,100250.0,100240.0,1e-08]
[1763055464823,0.38872585,100250.0,100240.0,1e-08]
[1763055465689,0.38872585,100250.0,100240.0,0.0002546]
[1763055467902,1.05884319,100250.0,100240.0,0.0002546]
[1763055468386,1.42526193,100250.0,100240.0,0.0002546]
[1763055468607,1.44632961,100250.0,100240.0,0.0002546]
[1763055468855,0.52252114,100240.0,100230.0,0.36719015]
[1763055469073,1.1741804,100220.0,100210.0,0.24439985]
[1763055469294,0.62238132,100220.0,100210.0,0.24439985]
[1763055469525,0.29938132,100220.0,100210.0,0.24439985]
[1763055469963,0.29938132,100220.0,100210.0,0.24516388]
[1763055470171,0.48074271,100220.0,100210.0,0.24516388]
[1763055470369,0.50051681,100220.0,100210.0,0.24516388]
[1763055470785,0.39801667,100220.0,100210.0,0.24516388]
[1763055470992,0.39901667,100220.0,100210.0,0.24516388]
[1763055471198,0.41932457,100220.0,100210.0,0.24516388]
[1763055471403,1.07013401,100220.0,100210.0,0.24516388]
[1763055471603,1.39313401,100220.0,100210.0,0.24516388]
[1763055471813,1.49161737,100220.0,100210.0,0.24516388]
[1763055472012,1.49474039,100220.0,100210.0,0.24516388]
[1763055472433,0.84393095,100220.0,100210.0,0.24516388]
[1763055472558,1.53815913,100220.0,100210.0,0.24516388]
[1763055472762,0.88734969,100220.0,100210.0,0.24516388]
[1763055473179,1.53815913,100220.0,100210.0,0.24516388]
[1763055475084,1.53815913,100220.0,100190.0,0.012]
[1763055475085,0.58532743,100200.0,100190.0,0.012]
[1763055475284,0.01908036,100200.0,100190.0,0.012]
[1763055475561,0.29942115,100200.0,100190.0,0.012]
[1763055476186,0.39761252,100200.0,100190.0,0.012]
[1763055476413,0.41692042,100200.0,100190.0,0.012]
[1763055476995,1.06772986,100200.0,100190.0,0.012]
[1763055477154,0.39792673,100200.0,100190.0,0.012]
[1763055477362,0.39761252,100200.0,100190.0,0.012]
[1763055477962,0.41692042,100200.0,100190.0,0.012]
[1763055478608,1.06772986,100200.0,100190.0,0.012]
[1763055478961,1.07085327,100200.0,100190.0,0.012]
[1763055479183,1.49233663,100200.0,100190.0,0.012]
[1763055479953,1.53575537,100200.0,100190.0,0.012]
[1763055480647,0.86563803,100200.0,100190.0,0.012]
[1763055480860,0.84152719,100200.0,100190.0,0.01250953]
[1763055481524,0.21873745,100200.0,100190.0,0.01250953]
[1763055481749,0.3976466,100200.0,100190.0,0.01250953]
[1763055482003,0.21873745,100200.0,100190.0,0.21213025]
[1763055482245,0.01832666,100200.0,100190.0,0.36224025]
[1763055482730,0.21792745,100200.0,100190.0,0.36224025]
[1763055482982,0.01832666,100200.0,100190.0,0.36224025]
[1763055483212,0.01832666,100200.0,100190.0,0.97902261]
[1763055483886,0.21792745,100200.0,100190.0,0.3703694]
[1763055484092,0.23971823,100200.0,100190.0,0.01250953]
[1763055484298,0.23971823,100200.0,100190.0,0.01350953]
[1763055484521,0.01832666,100200.0,100190.0,0.3713694]
[1763055484725,0.01832666,100200.0,100190.0,1.30302261]
[1763055484959,0.01832666,100200.0,100190.0,0.7844094]
[1763055485206,0.20002725,100220.0,100200.0,0.323]
[1763055485437,0.19958088,100210.0,100190.0,0.16211]
[1763055485682,0.19960079,100200.0,100190.0,0.26027915]
[1763055485940,0.21872218,100200.0,100190.0,0.014]
[1763055486219,0.21794218,100200.0,100190.0,0.016]
[1763055486458,0.21872218,100200.0,100190.0,0.014]
[1763055486707,0.31494008,100200.0,100190.0,0.015]
[1763055486929,0.22106558,100200.0,100190.0,0.67964321]
[1763055487200,0.21794218,100200.0,100190.0,0.15803]
[1763055487431,0.21794218,100200.0,100190.0,0.35965072]
[1763055487664,0.21794218,100200.0,100190.0,0.16003]
[1763055487879,0.21794218,100200.0,100190.0,0.35865072]
[1763055488095,0.8062985,100220.0,100190.0,0.45681987]
[1763055488364,0.19958088,100210.0,100200.0,0.08659]
[1763055488575,0.19958088,100210.0,100200.0,0.19960079]
[1763055488576,0.202704,100210.0,100200.0,0.19960079]
[1763055488838,0.19960079,100200.0,100190.0,0.42359]
[1763055489075,0.19960079,100200.0,100190.0,0.52075915]
[1763055489331,0.19958088,100210.0,100190.0,0.77881987]
[1763055489556,0.20270396,100210.0,100190.0,0.77881987]
[1763055489769,0.19960079,100200.0,100190.0,0.57919915]
[1763055492422,0.19960079,100200.0,100190.0,0.45581862]
[1763055492624,0.19960079,100200.0,100190.0,0.45581987]
[1763055493430,0.19960079,100200.0,100190.0,0.45681987]
[1763055493638,0.19960079,100200.0,100190.0,0.15903]
[1763055494068,0.19960079,100200.0,100190.0,0.25719915]
[1763055494438,0.19960079,100200.0,100190.0,0.07244]
[1763055494680,0.24933587,100200.0,100190.0,0.07244]
[1763055494893,0.24933587,100200.0,100190.0,0.25719915]
[1763055494894,0.19960079,100200.0,100190.0,0.25719915]
[1763055495096,0.19960079,100200.0,100190.0,0.07344]
[1763055495424,0.27729079,100200.0,100190.0,0.014]
[1763055495626,0.20038079,100200.0,100190.0,0.014]
[1763055496209,0.28041417,100200.0,100190.0,0.014]
[1763055496409,0.89438736,100200.0,100190.0,0.014]
[1763055496609,0.39508205,100200.0,100190.0,0.014]
[1763055496794,0.39820543,100200.0,100190.0,0.014]
[1763055497237,0.49637458,100200.0,100190.0,0.013]
[1763055497451,0.99567989,100200.0,100190.0,0.013]
[1763055497611,1.01498779,100200.0,100190.0,0.01350954]
[1763055498033,0.49637458,100200.0,100190.0,0.01350954]
[1763055498267,0.99567989,100200.0,100190.0,0.01350954]
[1763055498509,1.33798792,100200.0,100190.0,0.01350954]
[1763055498742,1.3591737,100200.0,100190.0,0.01250954]
[1763055499173,1.33798792,100200.0,100190.0,0.01250954]
[1763055499816,1.35917411,100200.0,100190.0,0.01250954]
[1763055500036,1.35637415,100200.0,100190.0,0.01250954]
[1763055500472,1.37755936,100200.0,100190.0,0.01250954]
[1763055501378,1.4209781,100200.0,100190.0,0.01250954]
[1763055502449,0.85894615,100200.0,100190.0,0.01250954]
[1763055502659,1.05455936,100200.0,100190.0,0.01250954]
[1763055502861,1.03525146,100200.0,100190.0,0.01250954]
[1763055503069,1.01094274,100200.0,100190.0,0.01250954]
[1763055503280,1.05143571,100200.0,100190.0,0.01250954]
[1763055503503,1.05455948,100200.0,100190.0,0.01250954]
[1763055503694,1.03025064,100200.0,100190.0,0.01250954]
[1763055504140,0.91245938,100200.0,100190.0,0.01250954]
[1763055505312,0.93176728,100200.0,100190.0,0.01250954]
[1763055505677,0.41315407,100200.0,100190.0,0.01250954]
[1763055505871,0.39384617,100200.0,100190.0,0.01250954]
[1763055506094,0.31693617,100200.0,100190.0,0.01250954]
[1763055506516,0.31615617,100200.0,100190.0,0.01250954]
[1763055506715,0.31615617,100200.0,100190.0,0.27157026]
[1763055507145,0.21798702,100200.0,100190.0,0.35816026]
[1763055507351,0.01838623,100200.0,100190.0,0.35816026]
[1763055507734,0.19960079,100200.0,100190.0,0.15853954]
[1763055508193,0.19960079,100200.0,100190.0,0.07194954]
[1763055508702,0.29886415,100200.0,100190.0,0.01250954]
[1763055508914,0.19960079,100200.0,100190.0,0.21213026]
[1763055509132,0.19960079,100200.0,100190.0,0.27157026]
[1763055509552,0.19960079,100200.0,100190.0,0.01250954]
[1763055509553,0.37545994,100200.0,100190.0,0.01250954]
[1763055509821,0.89407315,100200.0,100190.0,0.01250954]
[1763055510041,0.4932512,100200.0,100190.0,0.01250954]
[1763055510240,1.01186441,100200.0,100190.0,0.01250954]
[1763055511802,1.33486441,100200.0,100190.0,0.01250954]
[1763055512762,1.37828315,100200.0,100190.0,0.01250954]
[1763055512983,1.39666978,100200.0,100190.0,0.01250954]
[1763055513208,1.91528299,100200.0,100190.0,0.01250954]
[1763055513432,1.39666978,100200.0,100190.0,0.01250954]
[1763055513657,1.40670969,100200.0,100190.0,0.01250954]
[1763055514143,1.39666927,100200.0,100190.0,0.01250954]
[1763055514366,1.91628248,100200.0,100190.0,0.01250954]
[1763055514582,1.93746546,100200.0,100190.0,0.01250954]
[1763055514803,0.90123904,100200.0,100190.0,0.01250954]
[1763055515038,1.39866927,100200.0,100190.0,0.01250954]
[1763055515259,1.30018591,100200.0,100190.0,0.01250954]
[1763055516999,1.69496878,100200.0,100190.0,0.01250954]
[1763055517435,2.17284829,100200.0,100190.0,0.01250954]
[1763055517647,2.17284829,100200.0,100180.0,0.102]
[1763055517648,1.1323247,100190.0,100180.0,0.102]
[1763055517868,0.79271666,100190.0,100180.0,0.102]
[1763055518286,1.2494147,100190.0,100180.0,0.102]
[1763055518935,1.29283344,100190.0,100180.0,0.102]
[1763055520008,0.8361354,100190.0,100180.0,0.102]
[1763055520250,0.89120002,100190.0,100180.0,0.102]
[1763055520468,1.34789806,100190.0,100180.0,0.102]
[1763055520691,1.3913168,100190.0,100180.0,0.102]
[1763055520910,0.99696687,100190.0,100180.0,0.102]
[1763055522972,1.03240938,100190.0,100180.0,0.102]
[1763055523185,1.37471728,100190.0,100180.0,0.102]
[1763055523397,1.37471728,100190.0,100180.0,0.10225482]
[1763055525742,1.41813602,100190.0,100180.0,0.10225482]
[1763055527231,1.42013602,100190.0,100180.0,0.10225482]
[1763055527448,1.42213602,100190.0,100180.0,0.10225482]
[1763055528082,0.90308987,100190.0,100180.0,0.10225482]
[1763055528292,1.28023392,100190.0,100180.0,0.10225482]
[1763055529582,1.29862697,100190.0,100180.0,0.10225482]
[1763055530208,0.77958082,100190.0,100180.0,0.10225482]
[1763055530418,1.29862697,100190.0,100180.0,0.10225482]
[1763055530627,0.77958082,100190.0,100180.0,0.10225482]
[1763055530852,0.53575628,100190.0,100180.0,0.10225482]
[1763055531272,0.51736323,100190.0,100180.0,0.10225482]
[1763055531483,0.34707987,100190.0,100180.0,0.10225482]
[1763055531734,0.34707987,100190.0,100180.0,0.09725482]
[1763055532358,0.34507987,100190.0,100180.0,0.09725482]
[1763055532567,0.41687987,100190.0,100180.0,0.09725482]
[1763055532772,0.34607987,100190.0,100180.0,0.29689546]
[1763055533009,0.34607987,100190.0,100180.0,0.09725482]
[1763055533241,0.44456323,100190.0,100180.0,0.29689546]
[1763055533445,0.34607987,100190.0,100180.0,0.09725482]
[1763055534062,0.41787987,100190.0,100180.0,0.09725482]
[1763055534288,0.41587987,100190.0,100180.0,0.09725482]
[1763055534495,0.41687987,100190.0,100180.0,0.09725482]
[1763055534688,0.48011445,100190.0,100180.0,0.09725482]
[1763055534889,0.40831445,100190.0,100180.0,0.09725482]
[1763055535093,0.34507987,100190.0,100180.0,0.29689546]
[1763055535381,0.10958535,100190.0,100180.0,0.29189546]
[1763055535640,0.30920607,100190.0,100180.0,0.09225482]
[1763055536279,0.30920607,100190.0,100180.0,0.35147546]
[1763055536506,0.30920607,100190.0,100180.0,0.09225482]
[1763055536914,0.90256012,100190.0,100180.0,0.09225482]
[1763055538065,0.92096577,100190.0,100180.0,0.09225482]
[1763055538303,1.24396577,100190.0,100180.0,0.09225482]
[1763055540243,1.22556012,100190.0,100180.0,0.09225482]
[1763055540674,1.28739307,100190.0,100180.0,0.09225482]
[1763055540906,1.38587643,100190.0,100180.0,0.09225482]
[1763055541105,1.40708896,100190.0,100180.0,0.09225482]
[1763055542386,1.3086056,100190.0,100180.0,0.09225482]
[1763055543005,1.70313945,100190.0,100180.0,0.09225482]
[1763055544938,1.24635334,100190.0,100180.0,0.09225482]
[1763055545362,1.70314723,100190.0,100180.0,0.09225482]
[1763055545808,1.24635334,100190.0,100180.0,0.09225482]
[1763055545985,1.3448367,100190.0,100180.0,0.09225482]
[1763055546479,0.18299956,100190.0,100180.0,0.09225482]
[1763055546736,0.18299956,100190.0,100180.0,0.43559546]
[1763055546737,0.002,100190.0,100180.0,0.43559546]
[1763055547014,0.71333461,100190.0,100180.0,0.09225482]
[1763055547209,0.73264251,100190.0,100180.0,0.09225482]
[1763055547428,0.81181797,100190.0,100180.0,0.09225482]
[1763055547856,0.80981797,100190.0,100180.0,0.09225482]
[1763055548037,0.80981797,100190.0,100180.0,0.09325482]
[1763055548268,1.13281797,100190.0,100180.0,0.09325482]
[1763055548487,1.15123566,100190.0,100180.0,0.09325482]
[1763055548695,1.2139623,100190.0,100180.0,0.09225482]
[1763055548909,1.23517874,100190.0,100180.0,0.09225482]
[1763055549852,1.23617874,100190.0,100180.0,0.09225482]
[1763055550844,1.23717874,100190.0,100180.0,0.09225482]
[1763055551049,1.23917874,100190.0,100180.0,0.09225482]
[1763055551525,1.09727664,100190.0,100180.0,0.09225482]
[1763055551783,1.0567523,100190.0,100180.0,0.09225482]
[1763055552264,1.0567523,100190.0,100180.0,0.23595482]
[1763055552265,0.6788323,100190.0,100180.0,0.23595482]
[1763055552512,0.67883615,100190.0,100180.0,0.14989482]
[1763055552742,0.20362072,100190.0,100180.0,0.23595482]
[1763055552959,0.20162072,100190.0,100180.0,0.23595482]
[1763055553180,0.19962072,100190.0,100180.0,0.23595482]
[1763055553417,0.20062072,100190.0,100180.0,0.14989482]
[1763055553656,0.20162072,100190.0,100180.0,0.14989482]
[1763055553870,0.95235815,100190.0,100180.0,0.14989482]
[1763055554350,1.03317815,100190.0,100180.0,0.09225482]
[1763055554645,0.26057264,100190.0,100180.0,0.14989482]
[1763055554882,0.002,100190.0,100180.0,0.23595482]
[1763055555093,0.20162072,100190.0,100180.0,0.14989482]
[1763055555309,0.85387479,100190.0,100180.0,0.09225482]
[1763055555511,0.95204394,100190.0,100180.0,0.09225482]